bitfinex/quotes_BTCUSD_20220205
["timestamp","ask_amount","ask_price","bid_price","bid_amount"]
[1644019678203,0.0064,41529.0,41525.0,0.120385]
[1644019678403,0.0064,41529.0,41526.0,0.0483]
[1644019678603,0.00079173,41527.0,41526.0,0.0483]
[1644019678804,0.00057931,41533.0,41526.0,0.0483]
[1644019679005,0.1311913,41539.0,41526.0,0.0483]
[1644019679204,0.2311913,41539.0,41526.0,0.0483]
[1644019679405,0.1311913,41539.0,41529.0,0.060192]
[1644019679706,0.151,41543.0,41530.0,0.27396568]
[1644019679707,0.001,41543.0,41530.0,0.27396568]
[1644019679906,0.01937963,41542.0,41533.0,0.05]
[1644019680109,0.01937963,41542.0,41522.0,0.1]
[1644019680110,0.01544691,41542.0,41532.0,0.05]
[1644019680306,0.001,41543.0,41542.0,0.01555501]
[1644019680507,0.001,41543.0,41542.0,0.06385501]
[1644019680913,0.02,41559.0,41542.0,0.06385501]
[1644019681149,0.84617861,41562.0,41542.0,0.06385501]
[1644019681150,0.74612212,41560.0,41546.0,0.05]
[1644019681355,0.00075808,41560.0,41549.0,0.05]
[1644019681553,0.02,41569.0,41554.0,0.8]
[1644019681554,0.01721336,41569.0,41554.0,0.8]
[1644019681751,0.01721336,41569.0,41549.0,0.180428]
[1644019681752,0.0004464,41565.0,41559.0,0.6036]
[1644019681952,0.13876538,41564.0,41560.0,0.0483]
[1644019682152,0.00026259,41557.0,41550.0,0.24304991]
[1644019682454,0.00526257,41569.0,41553.0,0.120296]
[1644019682655,0.0008928,41565.0,41557.0,0.05]
[1644019682852,0.0008928,41565.0,41560.0,0.05]
[1644019683050,0.0008928,41565.0,41561.0,0.0483]
[1644019683455,0.40977666,41564.0,41561.0,0.0483]
[1644019683654,0.14588303,41564.0,41561.0,0.0483]
[1644019684652,0.0008928,41565.0,41561.0,0.0483]
[1644019684920,0.0008928,41565.0,41561.0,0.39441436]
[1644019685122,0.0008928,41565.0,41561.0,0.168572]
[1644019685922,0.00115537,41569.0,41561.0,0.168572]
[1644019686323,0.02,41579.0,41561.0,0.168572]
[1644019686524,0.05,41573.0,41561.0,0.168572]
[1644019686724,0.13213687,41562.0,41561.0,0.0483]
[1644019687125,0.13163687,41562.0,41561.0,0.0483]
[1644019687322,0.1,41567.0,41561.0,0.0483]
[1644019687523,0.04,41567.0,41561.0,0.0483]
[1644019687727,0.00079361,41571.0,41561.0,0.0483]
[1644019687927,0.05,41573.0,41561.0,0.0483]
[1644019687928,0.05,41572.0,41561.0,0.04710045]
[1644019688123,0.00618799,41574.0,41561.0,0.04710045]
[1644019688525,0.00733393,41577.0,41561.0,0.10723545]
[1644019688750,0.01080688,41579.0,41562.0,0.05]
[1644019688950,0.01080688,41579.0,41564.0,0.120251]
[1644019689151,0.01080688,41579.0,41565.0,0.22035674]
[1644019689352,0.01080688,41579.0,41565.0,0.05]
[1644019689353,0.27917672,41579.0,41565.0,0.05]
[1644019689552,0.001,41584.0,41566.0,0.03725884]
[1644019689553,0.00107584,41582.0,41566.0,0.03725884]
[1644019689751,0.00107584,41582.0,41573.0,0.05]
[1644019689954,0.00107584,41582.0,41574.0,0.31865674]
[1644019690153,0.00107584,41582.0,41576.0,0.05]
[1644019690353,0.00107584,41582.0,41577.0,0.0483]
[1644019690556,1.01643099,41594.0,41577.0,0.0483]
[1644019690752,0.76737114,41594.0,41579.0,0.060114]
[1644019690959,0.76737114,41594.0,41580.0,0.0483]
[1644019691358,0.2436,41597.0,41583.0,0.120201]
[1644019691657,0.5829152,41603.0,41585.0,0.05]
[1644019691855,0.0010152,41603.0,41589.0,0.6036]
[1644019692057,0.22035674,41601.0,41590.0,0.0483]
[1644019692256,0.22035674,41607.0,41590.0,0.0483]
[1644019692500,0.2768,41610.0,41590.0,0.0483]
[1644019692707,0.2768,41610.0,41591.0,0.22035674]
[1644019693004,0.2768,41610.0,41600.0,0.6036]
[1644019693005,0.016,41609.0,41600.0,0.6036]
[1644019693206,0.016,41609.0,41601.0,0.0483]
[1644019693701,0.15246894,41604.0,41601.0,0.0483]
[1644019693902,0.329245,41603.0,41601.0,0.0483]
[1644019694101,0.26013608,41604.0,41601.0,0.0483]
[1644019694303,0.016,41609.0,41601.0,0.0483]
[1644019694902,0.13767,41605.0,41601.0,0.0483]
[1644019695303,0.329245,41603.0,41595.0,0.0483]
[1644019695502,0.05,41603.0,41583.0,0.060101]
[1644019695706,0.1,41603.0,41589.0,0.0483]
[1644019695903,0.1,41603.0,41597.0,0.0212802]
[1644019696165,0.13767,41605.0,41597.0,0.0212802]
[1644019696761,0.0007925,41603.0,41597.0,0.0212802]
[1644019697763,0.0117925,41609.0,41597.0,0.04298485]
[1644019697964,0.00074673,41602.0,41598.0,0.0442]
[1644019698965,0.0117925,41609.0,41598.0,0.0442]
[1644019699766,0.0117925,41609.0,41598.0,0.06591656]
[1644019700001,0.0117925,41609.0,41598.0,0.0442]
[1644019701204,0.14230725,41604.0,41598.0,0.0442]
[1644019701401,0.0067925,41609.0,41598.0,0.0442]
[1644019701801,0.0067925,41609.0,41598.0,0.06578979]
[1644019702403,0.12577889,41606.0,41598.0,0.06578979]
[1644019702803,0.12603813,41606.0,41598.0,0.06578979]
[1644019703665,0.12077889,41606.0,41598.0,0.06578979]
[1644019703856,1.25,41602.0,41584.0,0.0442]
[1644019704253,0.01724076,41596.0,41584.0,0.0442]
[1644019704853,0.15092088,41593.0,41584.0,0.0442]
[1644019705252,0.01724076,41596.0,41584.0,0.0442]
[1644019705453,0.01224076,41596.0,41588.0,0.05]
[1644019705654,0.01224076,41596.0,41583.0,0.1]
[1644019705854,1.07798915,41602.0,41580.0,0.05]
[1644019706054,1.07798915,41602.0,41575.0,0.170211]
[1644019706055,0.30864918,41601.0,41575.0,0.214411]
[1644019706258,0.13424052,41586.0,41575.0,0.170211]
[1644019706456,0.13424052,41586.0,41575.0,0.120211]
[1644019706655,0.2373062,41582.0,41569.0,0.060119]
[1644019706854,0.2373062,41582.0,41565.0,2.37206818]
[1644019706855,0.2373062,41582.0,41565.0,2.42206818]
[1644019707055,0.2373062,41582.0,41566.0,0.21786388]
[1644019707507,0.2373062,41582.0,41565.0,2.42206818]
[1644019707508,0.14434222,41579.0,41565.0,2.42206818]
[1644019708107,0.14434222,41579.0,41565.0,2.41706818]
[1644019708508,0.08545295,41577.0,41565.0,2.41706818]
[1644019708709,0.13854126,41571.0,41565.0,2.41706818]
[1644019708913,0.08545295,41577.0,41565.0,0.05]
[1644019709408,0.23668092,41575.0,41565.0,0.05]
[1644019709910,0.18045295,41577.0,41562.0,0.05]
[1644019710108,0.18045295,41577.0,41561.0,0.02091714]
[1644019710408,0.087324,41570.0,41561.0,0.02091714]
[1644019710611,0.41589458,41576.0,41561.0,1.871e-05]
[1644019710810,0.1,41576.0,41561.0,1.871e-05]
[1644019711010,0.02089843,41562.0,41561.0,1.871e-05]
[1644019712855,0.02089843,41562.0,41551.0,0.23162018]
[1644019712856,1.25,41561.0,41555.0,0.05]
[1644019713054,0.02089843,41562.0,41555.0,0.05]
[1644019713455,0.02089843,41562.0,41551.0,0.02]
[1644019713654,0.1989702,41560.0,41551.0,0.02]
[1644019714904,0.11850651,41560.0,41551.0,0.02]
[1644019715405,0.1,41562.0,41551.0,0.02]
[1644019715607,0.060164,41564.0,41551.0,0.02]
[1644019715805,0.060164,41564.0,41551.0,0.07]
[1644019716006,0.23690204,41561.0,41551.0,0.015]
[1644019716206,0.01909023,41565.0,41555.0,0.00079377]
[1644019716406,0.47334058,41556.0,41555.0,0.00079377]
[1644019716609,0.47334058,41556.0,41555.0,3.77e-06]
[1644019716807,0.429245,41556.0,41555.0,3.77e-06]
[1644019717205,0.33988697,41553.0,41551.0,0.015]
[1644019718005,0.33988697,41553.0,41545.0,0.21162018]
[1644019718006,1.25,41552.0,41540.0,0.05]
[1644019718208,0.33988697,41553.0,41540.0,0.05]
[1644019718661,0.25213011,41553.0,41540.0,0.05]
[1644019718853,0.13913527,41546.0,41540.0,0.05]
[1644019719054,0.21429828,41546.0,41540.0,0.05]
[1644019719260,0.21429828,41546.0,41538.0,0.02015582]
[1644019719261,0.21787377,41545.0,41538.0,0.02015582]
[1644019719455,0.21787377,41545.0,41541.0,0.0001]
[1644019719456,1.579245,41544.0,41541.0,0.0001]
[1644019719657,0.329245,41542.0,41538.0,0.02015582]
[1644019719856,0.329245,41542.0,41528.0,0.01990633]
[1644019719857,0.84982198,41539.0,41528.0,0.01990633]
[1644019720061,0.84982198,41539.0,41522.0,0.05]
[1644019720062,0.29502346,41523.0,41522.0,0.05]
[1644019720256,0.05,41529.0,41522.0,0.05]
[1644019720257,0.08326133,41527.0,41522.0,0.05]
[1644019720855,0.08326133,41527.0,41521.0,0.02]
[1644019721055,0.20977716,41527.0,41521.0,0.02]
[1644019721255,0.20977716,41527.0,41522.0,0.0007942]
[1644019722156,0.20977716,41527.0,41521.0,0.02]
[1644019722406,0.20977716,41527.0,41522.0,0.0007942]
[1644019722605,0.0199,41529.0,41522.0,0.0007942]
[1644019723208,0.0199,41529.0,41527.0,0.05]
[1644019723410,0.0199,41529.0,41522.0,0.05]
[1644019723608,0.0199,41529.0,41524.0,0.05]
[1644019723906,0.0199,41529.0,41525.0,0.1942]
[1644019724106,0.0199,41529.0,41528.0,0.2]
[1644019724306,0.0199,41529.0,41528.0,0.0442]
[1644019724610,0.41369794,41535.0,41528.0,0.0442]
[1644019724806,0.07595309,41534.0,41528.0,0.0442]
[1644019725009,0.25550926,41535.0,41529.0,0.2]
[1644019725407,0.15,41544.0,41529.0,0.2]
[1644019725607,0.15,41544.0,41524.0,0.120358]
[1644019725608,0.1,41544.0,41524.0,0.120358]
[1644019725807,0.1,41544.0,41533.0,0.00079346]
[1644019725808,0.05,41535.0,41533.0,0.00079346]
[1644019726009,0.07344543,41534.0,41533.0,0.00079346]
[1644019726856,0.07344543,41534.0,41524.0,0.320358]
[1644019727055,0.07344543,41534.0,41531.0,0.00079349]
[1644019727656,0.12344543,41534.0,41531.0,0.00079349]
[1644019728056,0.07344543,41534.0,41531.0,0.060178]
[1644019728258,0.02197952,41537.0,41531.0,0.060178]
[1644019728958,0.06745847,41539.0,41531.0,0.060178]
[1644019729159,0.05,41538.0,41531.0,0.060178]
[1644019729358,0.26780835,41538.0,41536.0,0.02197952]
[1644019729562,0.01696048,41536.0,41533.0,0.00079406]
[1644019729763,0.05,41534.0,41533.0,0.00079406]
[1644019730204,0.01696048,41536.0,41533.0,0.00079406]
[1644019730406,0.01696048,41536.0,41526.0,0.05]
[1644019730407,0.05,41535.0,41526.0,0.05]
[1644019730607,0.01696048,41536.0,41528.0,0.05]
[1644019730608,0.08801722,41534.0,41528.0,0.05]
[1644019730805,0.08801722,41534.0,41532.0,0.00079407]
[1644019731804,0.08801722,41534.0,41528.0,0.05]
[1644019732007,0.16145496,41536.0,41531.0,0.00079409]
[1644019732205,0.16145496,41536.0,41532.0,0.05]
[1644019732607,0.32632206,41542.0,41532.0,0.05]
[1644019732808,0.32632206,41542.0,41531.0,0.00079409]
[1644019732809,0.22767113,41541.0,41531.0,0.00079409]
[1644019733004,0.08193538,41531.0,41528.0,0.05]
[1644019733205,0.25097927,41537.0,41535.0,0.0007732]
[1644019733505,0.1404219,41543.0,41535.0,0.0007732]
[1644019733756,0.2404219,41543.0,41535.0,0.0007732]
[1644019733952,0.1,41543.0,41535.0,0.0007732]
[1644019734150,0.05,41543.0,41532.0,0.05]
[1644019734350,0.05,41543.0,41537.0,0.00077317]
[1644019734351,0.08953027,41539.0,41537.0,0.00077317]
[1644019734958,0.14631612,41538.0,41537.0,0.00077317]
[1644019735352,0.13953027,41539.0,41537.0,0.00077317]
[1644019735555,0.13953027,41539.0,41526.0,0.05]
[1644019735556,0.08227799,41532.0,41526.0,0.05]
[1644019735855,0.06362222,41530.0,41526.0,0.05]
[1644019736052,0.06362222,41530.0,41526.0,0.045]
[1644019736252,0.05,41541.0,41526.0,0.045]
[1644019736253,0.005,41531.0,41526.0,0.045]
[1644019736452,0.05,41541.0,41526.0,0.045]
[1644019736453,0.05,41543.0,41526.0,0.045]
[1644019736652,0.005,41534.0,41526.0,0.045]
[1644019736854,0.005,41531.0,41526.0,0.04574532]
[1644019737053,0.15835846,41538.0,41526.0,0.04574532]
[1644019737255,0.15835846,41538.0,41526.0,0.00074532]
[1644019737256,0.005,41527.0,41526.0,0.00074532]
[1644019737504,0.20835846,41538.0,41526.0,0.00074532]
[1644019737505,0.005,41533.0,41526.0,0.00074532]
[1644019737799,0.005,41537.0,41526.0,0.045]
[1644019737999,0.005,41537.0,41524.0,0.28660559]
[1644019738201,0.005,41537.0,41530.0,0.045]
[1644019738399,0.005,41537.0,41527.0,0.00074531]
[1644019738600,0.15835846,41538.0,41527.0,0.00074531]
[1644019738601,0.005,41529.0,41527.0,0.00074531]
[1644019738800,0.06981509,41535.0,41527.0,0.00074531]
[1644019739001,0.0288082,41535.0,41527.0,0.00074531]
[1644019739201,0.0288082,41535.0,41531.0,0.045]
[1644019739400,0.0288082,41535.0,41529.0,0.060183]
[1644019739600,0.0288082,41535.0,41529.0,0.00074529]
[1644019740005,0.005,41530.0,41529.0,0.00074529]
[1644019740301,0.005,41535.0,41529.0,0.045]
[1644019740505,0.005,41535.0,41530.0,0.060184]
[1644019740703,0.005,41535.0,41530.0,0.104384]
[1644019740901,0.15,41544.0,41530.0,0.104384]
[1644019740902,0.005,41538.0,41530.0,0.104384]
[1644019741178,0.005,41537.0,41530.0,0.104384]
[1644019741373,0.005,41535.0,41530.0,0.104384]
[1644019741773,0.005,41535.0,41531.0,0.00073307]
[1644019741977,0.005,41535.0,41531.0,0.04493307]
[1644019742678,0.005,41532.0,41531.0,0.0442]
[1644019742978,0.005,41534.0,41531.0,0.04493307]
[1644019743177,0.005,41534.0,41531.0,0.00073307]
[1644019743974,0.005,41534.0,41524.0,0.13985352]
[1644019744174,0.28599471,41537.0,41530.0,0.00071209]
[1644019744577,0.005,41532.0,41530.0,0.00071209]
[1644019745206,0.005,41532.0,41524.0,0.120367]
[1644019745403,0.005,41533.0,41529.0,0.00071211]
[1644019745804,0.005,41534.0,41529.0,0.00071211]
[1644019746005,0.005,41541.0,41530.0,0.0442]
[1644019746205,0.005,41541.0,41533.0,0.045]
[1644019746405,0.005,41541.0,41535.0,0.045]
[1644019746606,0.005,41541.0,41536.0,0.0442]
[1644019746805,0.005,41541.0,41536.0,0.2442]
[1644019747807,0.02143614,41545.0,41538.0,0.045]
[1644019748007,0.02143614,41545.0,41540.0,0.060163]
[1644019748207,0.005,41548.0,41540.0,0.210163]
[1644019748405,0.005,41548.0,41542.0,0.045]
[1644019748674,0.005,41548.0,41543.0,0.0442]
[1644019749067,0.00619268,41549.0,41543.0,0.04490949]
[1644019749469,0.00619268,41549.0,41544.0,0.05]
[1644019749668,0.00619268,41549.0,41546.0,0.05]
[1644019749867,0.00619268,41549.0,41547.0,0.2392]
[1644019750268,0.01119268,41549.0,41547.0,0.0892]
[1644019750571,0.12107118,41555.0,41547.0,0.2442]
[1644019750769,0.1,41558.0,41547.0,0.2442]
[1644019751069,0.098,41558.0,41548.0,0.21188399]
[1644019751269,0.01802987,41561.0,41549.0,0.0442]
[1644019751472,0.00071077,41560.0,41550.0,0.1268816]
[1644019751670,0.00071077,41560.0,41554.0,0.20479038]
[1644019751872,0.00071077,41560.0,41558.0,0.05]
[1644019752070,0.00071077,41560.0,41559.0,0.0942]
[1644019752412,0.001,41562.0,41559.0,0.0942]
[1644019752613,0.001,41562.0,41561.0,0.25]
[1644019752816,0.001,41562.0,41561.0,0.84825668]
[1644019752817,0.00121582,41562.0,41561.0,0.84825668]
[1644019753216,0.00121582,41562.0,41561.0,0.79825668]
[1644019753413,0.00121582,41562.0,41561.0,0.99825668]
[1644019753616,0.00050504,41562.0,41561.0,0.99825668]
[1644019754214,0.00584262,41570.0,41561.0,0.99825668]
[1644019754414,0.00584262,41570.0,41569.0,0.05]
[1644019754613,0.00584262,41570.0,41569.0,0.32548388]
[1644019755014,0.003,41570.0,41569.0,0.32548388]
[1644019755817,0.003,41573.0,41569.0,0.32548388]
[1644019756014,0.003,41573.0,41572.0,0.1]
[1644019756258,0.002,41577.0,41573.0,1.25]
[1644019756456,0.002,41577.0,41575.0,0.05]
[1644019756656,0.02108406,41583.0,41577.0,1.0]
[1644019756853,0.02,41589.0,41583.0,1.0]
[1644019757054,0.02,41589.0,41584.0,0.22674601]
[1644019757254,0.02,41589.0,41584.0,0.5973]
[1644019757454,0.02,41589.0,41582.0,0.02108406]
[1644019757455,0.23509658,41589.0,41582.0,0.02108406]
[1644019757654,0.02,41589.0,41582.0,0.02108406]
[1644019757852,0.08042988,41587.0,41582.0,0.02108406]
[1644019758053,0.02,41589.0,41582.0,0.02108406]
[1644019758853,0.00079367,41586.0,41582.0,0.02108406]
[1644019759257,0.00179367,41590.0,41582.0,0.14127806]
[1644019759456,0.00179367,41590.0,41583.0,0.0942]
[1644019759903,0.00179367,41590.0,41586.0,0.05]
[1644019760106,0.00179367,41590.0,41585.0,0.25]
[1644019760303,0.00179367,41590.0,41583.0,0.0942]
[1644019760904,0.00179367,41590.0,41583.0,0.1442]
[1644019761307,0.00179367,41590.0,41585.0,0.05]
[1644019761505,0.061088,41606.0,41587.0,0.120179]
[1644019761706,0.1,41600.0,41587.0,0.120179]
[1644019761906,0.22407141,41600.0,41587.0,0.120179]
[1644019762107,0.28638151,41600.0,41587.0,0.120179]
[1644019762311,0.13109622,41594.0,41587.0,0.120179]
[1644019762506,0.32370342,41594.0,41587.0,0.120179]
[1644019762906,0.0879903,41591.0,41587.0,0.120179]
[1644019763510,0.00079615,41591.0,41587.0,0.120179]
[1644019764554,0.001,41601.0,41587.0,0.120179]
[1644019764856,0.001,41601.0,41598.0,0.24]
[1644019765257,0.001,41601.0,41598.0,0.6489205]
[1644019765555,0.001,41601.0,41598.0,0.48642]
[1644019765759,0.003,41603.0,41602.0,0.05]
[1644019765958,0.001,41618.0,41602.0,0.05]
[1644019765959,0.00103223,41607.0,41603.0,1.47]
[1644019766158,0.001,41618.0,41610.0,0.05]
[1644019766159,0.02125927,41612.0,41610.0,0.05]
[1644019766360,0.02125927,41612.0,41611.0,0.0942]
[1644019766556,0.02125927,41612.0,41611.0,0.2342]
[1644019766958,0.02125927,41612.0,41611.0,0.0442]
[1644019767158,0.02125927,41612.0,41605.0,0.1]
[1644019767159,0.35,41611.0,41605.0,0.1]
[1644019767404,0.02125927,41612.0,41605.0,0.0942]
[1644019768003,0.02125927,41612.0,41605.0,0.29328886]
[1644019768204,0.02125927,41612.0,41610.0,0.060066]
[1644019768405,0.00079824,41611.0,41610.0,0.060066]
[1644019768606,0.00079824,41611.0,41610.0,0.31536225]
[1644019768804,0.00079824,41611.0,41610.0,0.36536225]
[1644019769011,0.02125927,41612.0,41610.0,0.36536225]
[1644019769209,0.02125927,41612.0,41610.0,0.154266]
[1644019769506,0.02125927,41612.0,41610.0,0.104266]
[1644019769708,0.02125927,41612.0,41611.0,0.24]
[1644019769908,0.02125927,41612.0,41611.0,0.0442]
[1644019770110,0.02125927,41612.0,41606.0,0.02173748]
[1644019770111,0.07509681,41612.0,41606.0,0.02173748]
[1644019770308,0.12509681,41612.0,41606.0,0.02173748]
[1644019770511,0.17509681,41612.0,41606.0,0.02173748]
[1644019770707,0.20672279,41609.0,41606.0,0.02173748]
[1644019770905,0.16165716,41608.0,41606.0,0.02173748]
[1644019771163,0.329245,41607.0,41606.0,0.02173748]
[1644019771561,0.16165716,41608.0,41606.0,0.02173748]
[1644019772156,0.22174816,41608.0,41606.0,0.02173748]
[1644019772360,0.16165716,41608.0,41606.0,0.02173748]
[1644019772559,0.30672279,41609.0,41601.0,0.02070088]
[1644019772763,0.30672279,41609.0,41588.0,0.060089]
[1644019772764,0.329245,41606.0,41579.0,0.104302]
[1644019772961,0.08708183,41585.0,41580.0,0.20932546]
[1644019773157,0.060106,41598.0,41580.0,0.20932546]
[1644019773359,0.24291946,41592.0,41581.0,0.7912]
[1644019773860,0.060106,41598.0,41581.0,0.7912]
[1644019774358,0.20932546,41601.0,41587.0,0.0007987]
[1644019774559,0.07070088,41602.0,41587.0,0.0007987]
[1644019774758,0.22814049,41601.0,41587.0,0.0007987]
[1644019775009,0.02070088,41602.0,41598.0,0.05]
[1644019775209,0.02070088,41602.0,41601.0,0.24]
[1644019775408,0.02070088,41602.0,41601.0,0.2842]
[1644019775610,0.02173,41607.0,41601.0,0.1442]
[1644019775807,0.02173,41607.0,41605.0,0.14]
[1644019776208,0.02173,41607.0,41605.0,0.19]
[1644019776209,0.01673,41607.0,41605.0,0.19]
[1644019776808,0.01173,41607.0,41604.0,0.00079849]
[1644019777009,0.08797413,41606.0,41604.0,0.00079849]
[1644019777408,0.12039474,41605.0,41604.0,0.00079849]
[1644019777911,0.12039474,41605.0,41601.0,0.02070088]
[1644019778107,0.12039474,41605.0,41602.0,0.00073508]
[1644019778954,0.12039474,41605.0,41598.0,0.05]
[1644019779351,0.12039474,41605.0,41601.0,0.00073509]
[1644019780251,0.12039474,41605.0,41598.0,0.05]
[1644019780454,0.12039474,41605.0,41601.0,0.0007351]
[1644019781453,0.12039474,41605.0,41598.0,0.05]
[1644019781854,0.12039474,41605.0,41592.0,0.060092]
[1644019782054,0.12039474,41605.0,41595.0,0.05]
[1644019782256,0.07202336,41599.0,41594.0,0.05]
[1644019782703,0.07202336,41599.0,41588.0,0.06516015]
[1644019782704,0.28388091,41599.0,41588.0,0.02096015]
[1644019782906,0.28388091,41599.0,41592.0,0.060092]
[1644019783504,0.15580585,41598.0,41592.0,0.060092]
[1644019783905,0.28388091,41599.0,41592.0,0.060092]
[1644019784905,0.11827077,41598.0,41592.0,0.060092]
[1644019785105,0.28388091,41599.0,41592.0,0.060092]
[1644019785305,0.28388091,41599.0,41593.0,0.00079813]
[1644019786263,0.28388091,41599.0,41592.0,0.060092]
[1644019786463,0.28388091,41599.0,41594.0,0.00079812]
[1644019786865,0.16650226,41597.0,41594.0,0.00079812]
[1644019787060,0.28388091,41599.0,41592.0,0.060092]
[1644019787061,1.15,41598.0,41592.0,0.05589012]
[1644019787263,0.28388091,41599.0,41592.0,0.05589012]
[1644019788466,0.28388091,41599.0,41580.0,0.02066587]
[1644019788467,0.21185755,41599.0,41590.0,0.2570575]
[1644019788666,0.21185755,41599.0,41590.0,0.05]
[1644019788965,0.13238601,41599.0,41592.0,0.060075]
[1644019789164,0.13238601,41599.0,41593.0,0.0442]
[1644019790807,0.00079792,41605.0,41594.0,0.21429209]
[1644019791007,0.00079792,41605.0,41597.0,0.060077]
[1644019791206,0.0399,41610.0,41599.0,1.3]
[1644019791406,0.0399,41610.0,41600.0,0.0442]
[1644019791605,0.0399,41610.0,41605.0,0.01869821]
[1644019791807,0.2036892,41606.0,41605.0,0.01869821]
[1644019792009,0.2036892,41606.0,41605.0,0.06289821]
[1644019792209,0.06635401,41614.0,41606.0,0.3]
[1644019792409,0.4384,41636.0,41608.0,0.05]
[1644019792410,0.001,41627.0,41608.0,0.05]
[1644019792608,0.001,41627.0,41609.0,0.0442]
[1644019793008,0.22247753,41614.0,41610.0,0.12012]
[1644019793206,0.16204506,41621.0,41610.0,0.16432]
[1644019793406,0.0783569,41620.0,41610.0,0.16432]
[1644019793858,0.0783569,41620.0,41612.0,0.05]
[1644019794057,0.0783569,41620.0,41615.0,0.060065]
[1644019794058,0.0002156,41617.0,41615.0,0.060065]
[1644019794257,0.0002156,41617.0,41615.0,0.104265]
[1644019794258,0.22230786,41616.0,41615.0,0.104265]
[1644019794561,0.0002156,41617.0,41615.0,0.104265]
[1644019794957,0.0783569,41620.0,41615.0,0.104265]
[1644019795158,0.0783569,41620.0,41615.0,0.0442]
[1644019795358,0.0007107,41618.0,41615.0,0.0442]
[1644019795559,0.20078952,41617.0,41615.0,0.0442]
[1644019795758,0.20078952,41617.0,41607.0,0.00075973]
[1644019795759,0.02078952,41617.0,41607.0,0.00075973]
[1644019796060,0.02078952,41617.0,41607.0,0.30538859]
[1644019796258,0.02078952,41617.0,41608.0,0.120135]
[1644019796459,0.0007107,41614.0,41609.0,0.0442]
[1644019796658,0.0028423,41621.0,41613.0,0.05]
[1644019796858,0.24140096,41624.0,41615.0,0.060064]
[1644019797062,0.22457677,41623.0,41615.0,0.060064]
[1644019797260,0.13108696,41617.0,41615.0,0.060064]
[1644019797503,0.2392825,41626.0,41608.0,0.120135]
[1644019797703,0.08532862,41612.0,41608.0,0.120135]
[1644019797903,0.1101252,41615.0,41608.0,0.120135]
[1644019798704,0.1101252,41615.0,41609.0,0.00054909]
[1644019799304,0.07045759,41613.0,41609.0,0.00054909]
[1644019799504,0.1101252,41615.0,41609.0,0.00054909]
[1644019799808,0.1101252,41615.0,41608.0,0.120135]
[1644019800003,0.1101252,41615.0,41610.0,0.00054908]
[1644019800404,0.07552838,41612.0,41610.0,0.06061608]
[1644019800608,0.07552838,41612.0,41610.0,0.00054908]
[1644019801005,0.07552838,41612.0,41606.0,0.120146]
[1644019801455,0.25706518,41608.0,41606.0,0.120146]
[1644019801656,0.01828401,41622.0,41607.0,0.05]
[1644019801857,0.01828401,41622.0,41612.0,0.05]
[1644019802056,0.01828401,41622.0,41608.0,0.21840579]
[1644019802255,0.01828401,41622.0,41607.0,0.0442]
[1644019802655,0.22060863,41618.0,41615.0,0.00079777]
[1644019803458,0.22060863,41618.0,41611.0,0.120125]
[1644019803658,0.22060863,41618.0,41614.0,0.00079777]
[1644019803659,0.1800627,41618.0,41614.0,0.00079777]
[1644019803858,0.17033301,41618.0,41614.0,0.00079777]
[1644019804058,0.16925486,41620.0,41614.0,0.00079777]
[1644019804460,0.15109458,41620.0,41614.0,0.00079777]
[1644019804658,0.15109458,41620.0,41612.0,0.0942]
[1644019804903,0.15109458,41620.0,41615.0,0.00054847]
[1644019805107,0.33293231,41619.0,41615.0,0.00054847]
[1644019805305,0.2,41616.0,41601.0,0.180198]
[1644019805505,0.05,41603.0,41593.0,0.22585393]
[1644019805707,0.05,41603.0,41588.0,0.00219533]
[1644019805708,0.05,41596.0,41591.0,0.14345171]
[1644019805906,0.05,41596.0,41588.0,0.00219533]
[1644019805907,0.060122,41591.0,41574.0,0.19328311]
[1644019806105,0.08242069,41581.0,41574.0,0.19328311]
[1644019806307,0.08242069,41581.0,41566.0,6.67036717]
[1644019806308,0.120254,41579.0,41566.0,6.67036717]
[1644019806505,0.0792316,41573.0,41566.0,6.67036717]
[1644019806710,0.15,41572.0,41566.0,6.67036717]
[1644019806909,0.15,41572.0,41540.0,0.43963625]
[1644019806910,0.25,41567.0,41540.0,0.43963625]
[1644019807106,0.25,41567.0,41531.0,0.02]
[1644019807107,0.06886558,41542.0,41531.0,0.02]
[1644019807306,0.05,41554.0,41531.0,0.02]
[1644019807307,0.22918844,41544.0,41531.0,0.24560461]
[1644019807707,0.329245,41543.0,41533.0,0.05]
[1644019807904,0.329245,41545.0,41531.0,0.24560461]
[1644019808104,0.19264,41543.0,41532.0,0.21391452]
[1644019808304,0.1,41545.0,41535.0,0.05]
[1644019808504,0.2,41555.0,41531.0,0.24560461]
[1644019808505,0.1,41553.0,41536.0,0.21391452]
[1644019808768,0.04928237,41552.0,41551.0,0.05]
[1644019808967,0.05,41562.0,41551.0,0.05]
[1644019809168,0.05,41562.0,41558.0,0.05]
[1644019809365,0.05,41562.0,41561.0,0.05]
[1644019809663,0.0442,41578.0,41561.0,0.24758899]
[1644019809664,0.25876937,41574.0,41561.0,0.24758899]
[1644019809864,0.05,41572.0,41561.0,0.24758899]
[1644019810463,0.05,41572.0,41562.0,0.16437993]
[1644019810664,0.05,41572.0,41567.0,0.05]
[1644019811267,0.05,41572.0,41568.0,0.2636947]
[1644019811763,0.05,41572.0,41567.0,0.05]
[1644019811965,0.05,41572.0,41567.0,0.00079767]
[1644019811966,0.07313458,41571.0,41567.0,0.00079767]
[1644019812166,0.329245,41570.0,41567.0,0.00079767]
[1644019812614,0.329245,41570.0,41547.0,0.00037844]
[1644019812615,0.23155494,41569.0,41547.0,0.00037844]
[1644019812815,0.20466009,41561.0,41558.0,0.01868234]
[1644019813012,0.5640977,41560.0,41558.0,0.01868234]
[1644019813209,0.5640977,41560.0,41547.0,0.00037844]
[1644019813210,1.25,41559.0,41547.0,0.00037844]
[1644019813412,0.329245,41557.0,41547.0,0.00037844]
[1644019813610,0.05,41555.0,41547.0,0.00037844]